Cogmind - Beta 16 @@@ ROGUE MODE // 2026.01.12 @ 22:29:52 Player: McSi Result: Destroyed by ZU-OWB(R) with Subdweller Machine Gun Performance ------------- Evolutions (0) 0 Regions Visited (3) 600 Robots Destroyed (29) 145 Value Destroyed (856) 856 Prototype IDs (13) 260 Alien Tech Used (0) 0 Bonus (-40) -40 TOTAL SCORE: 1821 Bonus ------- Follower Combat Kills 55 Friendly Fire -95 Cogmind --------- Core Integrity 0/250 Matter 242/300 Energy 170/170 System Corruption 0% Temperature Cool (0) Movement Rolling (110) Location -10/Subcaves Parts ------- > --- POWER (1) -------- Makeshift Power Source > --- PROPULSION (2) --- Subdweller Monowheel Subdweller Monowheel > --- UTILITY (2) ------ Experimental Sensor Array Makeshift Kinetic Plating > --- WEAPON (2) ------- Barrage Gun Mini Grenade Launcher > --- INVENTORY (5) ---- Subdweller Monowheel Subdweller Monowheel Improved Heat Sink Disposable Heat Sink EM Shotgun Peak State ------------ > --- POWER ------------ Makeshift Power Source > --- PROPULSION ------- Subdweller Monowheel Subdweller Monowheel > --- UTILITY ---------- Experimental Sensor Array Launcher Guidance Computer > --- WEAPON ----------- Subdweller Laser Barrage Gun > --- INVENTORY -------- Subdweller Monowheel Improved Heat Sink Improved Heat Sink EM Shotgun Mini Grenade Launcher [Rating: 27] Favorites ----------- Power Makeshift Power Source Engine Makeshift Power Source Power Core Light Nuclear Core Propulsion Subdweller Monowheel Leg Aluminum Leg Wheel Subdweller Monowheel Utility Experimental Sensor Array Device Experimental Sensor Array Processor Launcher Guidance Computer Protection Makeshift Kinetic Plating Weapon Mini Grenade Launcher Energy Gun Particle Gun Ballistic Gun Barrage Gun Launcher Mini Grenade Launcher Build | -11 -10 -10 -10 ------- Run | Yrd Mat Min Sub Slots Evolved . | . . . . Power . | . . . . Propulsion . | . . . . Utility . | . . . . Weapon . | . . . . Parts Attached 34 | 7 12 4 11 Power 4 | 2 1 . 1 Engine 3 | 2 . . 1 Core 1 | . 1 . . Reactor . | . . . . Propulsion 13 | 2 4 1 6 Treads . | . . . . Leg 4 | 2 2 . . Wheel 9 | . 2 1 6 Hover . | . . . . Flight . | . . . . Utility 9 | 1 3 3 2 Device 5 | 1 2 1 1 Storage . | . . . . Processor 1 | . . 1 . Hackware . | . . . . Protection 3 | . 1 1 1 Artifact . | . . . . Weapon 8 | 2 4 . 2 Energy Gun 5 | 1 3 . 1 Energy Cannon . | . . . . Ballistic Gun 2 | 1 . . 1 Ballistic Cannon . | . . . . Launcher 1 | . 1 . . Special Weapon . | . . . . Impact Weapon . | . . . . Slashing Weapon . | . . . . Piercing Weapon . | . . . . Special Melee Weapon . | . . . . Unidentified Prototypes 1 | . . 1 . Parts Lost 3 | . . 1 2 Power . | . . . . Propulsion . | . . . . Utility 2 | . . 1 1 Weapon 1 | . . . 1 Highest Loss Streak 2 | . . 1 2 To Critical Strikes . | . . . . Average Backups 4 | 2 4 4 4 Power . | . . . . Propulsion 1 | 1 1 . 1 Utility 1 | . . 2 2 Weapon 1 | . 1 1 1 Tool/Special . | . . . . Unused Backups 9 | . 5 . 4 Power . | . . . . Propulsion 3 | . 3 . . Utility 4 | . 1 . 3 Weapon 2 | . 1 . 1 Tool/Special . | . . . . Average Slot Usage (%) 99 | . 97 99 99 Engine 9 | . 6 . 13 Core 4 | . 7 14 . Leg 3 | . 21 . . Wheel 24 | . 6 28 28 Device 16 | . 19 16 15 Processor 6 | . . 6 8 Protection 4 | . 6 4 3 Energy Gun 14 | . 17 27 8 Ballistic Gun 4 | . 6 . 5 Launcher 8 | . 4 . 13 Peak Build Rating 27 | 6 15 23 27 Average Rating 20 | 4 10 18 25 On Entrance 10 | . 6 14 23 Avg Prop Armor Cover (%) 4 | . . . 4 Naked Turns . | . . . . Heaviest Build 19 | 10 19 19 16 Greatest Support 40 | 20 32 32 40 Greatest Overweight (x) 1 | . 1 . . Average Overweight (x) . | . . . . Largest Inventory Capacity 5 | 5 5 5 5 Average Capacity 5 | 5 5 5 5 Most Carried 5 | 5 5 5 5 Average Carried 4 | 2 4 4 4 Final Capacity 5 | 5 5 5 5 Final Carried 5 | 5 5 5 5 Class Distribution -------------------- 65% | Mutant 34% | Scavenger-Mutant Dominant Class ---------------- Mutant | -10/Materials Mutant | -10/Mines Scavenger-Mutant | -10/Subcaves Resources | -11 -10 -10 -10 ----------- Run | Yrd Mat Min Sub Matter Collected 910 | 270 167 115 358 Remotely . | . . . . Salvage Created 865 | 42 202 205 416 Parts 65 | 3 15 11 36 Haulers Intercepted . | . . . . Recyclers Shooed . | . . . . Parts Field Recycled . | . . . . Retrieved Matter . | . . . . Parts Self-Destructed 23 | . . . 23 Prevented . | . . . . Parts Restored . | . . . . Kills | -11 -10 -10 -10 ------- Run | Yrd Mat Min Sub Combat Hostiles Destroyed 28 | 1 4 8 15 Guns 14 | 1 4 7 2 AOE 13 | . . . 13 Classes Destroyed 8 | 1 2 2 3 Tunneler 1 | . 1 . . Watcher 1 | . 1 . . Swarmer 7 | . . 3 4 Grunt 9 | 1 4 3 1 Sentry 1 | . . . 1 Subdweller 9 | . . . 9 Zionite 1 | . . . 1 Assembled 2 | . . 2 . Best Kill Streak 4 | 1 2 3 4 Combat Bots Only 4 | 1 2 3 4 Max Kills in Single Turn 4 | 1 1 1 4 Gunslinging . | . . . . Exploded 4 | . . . 4 Melee . | . . . . Uniques/NPCs Destroyed . | . . . . Combat | -11 -10 -10 -10 -------- Run | Yrd Mat Min Sub Hostile Shots Fired 89 | 6 14 22 47 Missed 27 | . 2 9 16 Hits 62 | 6 12 13 31 Melee 1 | . . 1 . Projectile 61 | 6 12 12 31 Damage Taken 1046 | 67 191 185 603 Core 252 | 10 9 34 199 Absorbed by Shields . | . . . . Ignored by Resistances 8 | . . . 8 Core Remaining (%) 96 | 96 . . . Volleys Fired 71 | 4 11 23 33 Largest 2 | 2 2 2 2 Hottest 110 | 60 95 110 95 Shots Fired 117 | 8 22 38 49 Gun 96 | 8 21 38 29 Cannon . | . . . . Launcher 21 | . 1 . 20 Special . | . . . . Kinetic 23 | 4 5 . 14 Thermal 34 | . 1 18 15 Explosive 21 | . 1 . 20 Electromagnetic 39 | 4 15 20 . Robot Hit Streak 10 | 1 7 9 10 Robot Miss Streak 4 | 4 2 4 2 Penetration Max . | . . . . Secondary Targets 5 | . 1 3 1 Max Gunslinging Chain 1 | . 1 1 1 Shots Hit Robots 75 | 2 15 24 34 Core Hits 50 | 2 12 10 26 Critical Kills . | . . . . Critical Parts Destroyed 1 | . . . 1 Critical Strikes 2 | . . 1 1 Burn 1 | . . 1 . Destroy 1 | . . . 1 Melee Attacks . | . . . . Impact . | . . . . Slashing . | . . . . Piercing . | . . . . Sneak Attacks . | . . . . Combat Hostiles . | . . . . Follow-up Attacks . | . . . . Damage Inflicted 2355 | 38 280 321 1716 Guns 868 | 38 198 321 311 Cannons . | . . . . Explosions 1487 | . 82 . 1405 Melee . | . . . . Ramming . | . . . . Kinetic 215 | 14 49 . 152 Thermal 297 | . 17 121 159 Explosive 1487 | . 82 . 1405 Electromagnetic 356 | 24 132 200 . Impact . | . . . . Slashing . | . . . . Piercing . | . . . . Highest Corruption . | . . . . Average Corruption . | . . . . Corruption Purged . | . . . . Corruption Blocked . | . . . . Overload Shots . | . . . . Overflow Damage 2 | . 2 . . Projectiles . | . . . . Explosions 2 | . 2 . . Melee . | . . . . Knockbacks . | . . . . Impact . | . . . . Kinetic . | . . . . Secondary . | . . . . Self-Inflicted Damage 151 | . 29 . 122 Shots 5 | . 1 . 4 Rammed . | . . . . Targets Rammed 1 | . 1 . . Kicked 1 | . 1 . . Crushed . | . . . . Highest Temperature 105 | 30 57 105 48 Average Temperature 26 | 18 29 28 19 Received Heat Transfer 231 | 36 90 54 51 Siege Activations . | . . . . Martial Activations . | . . . . Shielding Activations . | . . . . Robots Disrupted . | . . . . Combat Hostiles . | . . . . Robots Corrupted 1 | . . 1 . Combat Hostiles 1 | . . 1 . Parts Fried . | . . . . Impact Corruptions . | . . . . Robots Melted . | . . . . Combat Hostiles . | . . . . Parts Melted . | . . . . Heat Transferred 619 | . 37 370 212 Parts Sabotaged . | . . . . Parts Stolen . | . . . . Parts Stripped . | . . . . Power Chain Reactions . | . . . . Alert | -11 -10 -10 -10 ------- Run | Yrd Mat Min Sub Maximum Alert Level . | . . . . Low Security (%) 100 | 100 100 100 . Level 1 . | . . . . Level 2 . | . . . . Level 3 . | . . . . Level 4 . | . . . . Level 5 . | . . . . High Security . | . . . . Max Security . | . . . . Peak Influence 90 | 20 50 90 . Initial 13 | . 13 . . Average 20 | 3 15 26 . Influence Increases 470 | 20 125 175 150 Destroy 0b10 Robot/C 360 | 20 80 140 120 Destroy 0b10 Robot/NC 10 | . 10 . . Destroy Leader 52 | . 22 30 . Allied During Kill 5 | . . 5 . Successful Hack 5 | . 5 . . Destroy Structure 8 | . 8 . . Lose Combat Pursuer 30 | . . . 30 Influence Decreases 470 | . 145 175 150 Entered New Map 7 | . 7 . . Time Decay 433 | . 138 165 130 Lost Part 30 | . . 10 20 Squads Dispatched . | . . . . Investigation . | . . . . Extermination . | . . . . Reinforcement . | . . . . Assault . | . . . . Garrison . | . . . . Intercept . | . . . . Searches Triggered . | . . . . Construction Impeded . | . . . . Haulers Reinforced . | . . . . Active Scanning Responses . | . . . . Cargo Convoy Interrupts . | . . . . Stealth | -11 -10 -10 -10 --------- Run | Yrd Mat Min Sub Distress Signals 1 | . 1 . . Communications Jammed . | . . . . Distress Signals . | . . . . Times Spotted 39 | 1 8 14 16 Peak Tracking Total 11 | 1 3 11 6 Tactical Retreats 1 | . . . 1 Traps | -11 -10 -10 -10 ------- Run | Yrd Mat Min Sub Traps Triggered 1 | . . . 1 Indirectly . | . . . . Trap Hack Attempts . | . . . . Triggered . | . . . . Disarmed . | . . . . Reprogrammed . | . . . . Reused . | . . . . Traps Extracted . | . . . . Installed . | . . . . Triggered . | . . . . Machines | -11 -10 -10 -10 ---------- Run | Yrd Mat Min Sub Machines Disabled 1 | . . . 1 Max in Single Turn 1 | . . . 1 Machines Repaired . | . . . . Machines Dismantled . | . . . . Machines Sabotaged . | . . . . Overloaded Fab Kills . | . . . . Hacking | -11 -10 -10 -10 --------- Run | Yrd Mat Min Sub Machines Accessed 3 | . 2 . 1 Terminals 1 | . 1 . . Fabricators . | . . . . Repair Stations . | . . . . Recycling Units 1 | . 1 . . Scanalyzers . | . . . . Garrison Access . | . . . . Total Hacks 13 | . 4 . 9 Successful 12 | . 3 . 9 Failed 1 | . 1 . . Catastrophic . | . . . . Database Lockouts . | . . . . Manual 1 | . . . 1 Terminals 2 | . 2 . . Fabricators . | . . . . Repair Stations . | . . . . Recycling Units 2 | . 2 . . Scanalyzers . | . . . . Garrison Access . | . . . . Terminal Hacks 11 | . 2 . 9 Record 8 | . . . 8 Dispatch Records 1 | . 1 . . Hauler Manifests 1 | . 1 . . Proto ID Catalog 1 | . . . 1 Fabricator Hacks . | . . . . Repair Station Hacks . | . . . . Recycling Unit Hacks 1 | . 1 . . Report Inventory 1 | . 1 . . Scanalyzer . | . . . . Garrison Access Hacks . | . . . . Unauthorized Hacks . | . . . . Terminals . | . . . . Fabricators . | . . . . Repair Stations . | . . . . Recycling Units . | . . . . Scanalyzers . | . . . . Garrison Access . | . . . . Data Cores Recovered . | . . . . Used . | . . . . Hacking Detections 1 | . 1 . . Full Trace Events . | . . . . Feedback Events . | . . . . Feedback Blocked . | . . . . Robot Schematics Acquired . | . . . . Robots Built . | . . . . Authchips . | . . . . Time . | . . . . Total Robot Build Rating . | . . . . Part Schematics Acquired . | . . . . Parts Built . | . . . . Authchips . | . . . . Time . | . . . . Total Part Build Rating . | . . . . Part Studies Acquired . | . . . . Parts Repaired . | . . . . Time . | . . . . Parts Recycled . | . . . . Recycled Matter . | . . . . Retrieved Matter . | . . . . Retrieved Components . | . . . . Parts Scanalyzed . | . . . . Part Schematics Acquired . | . . . . Parts Damaged . | . . . . Bothacking | -11 -10 -10 -10 ------------ Run | Yrd Mat Min Sub Used RIF Installer . | . . . . Robots Hacked . | . . . . Non-combat . | . . . . Combat . | . . . . Robot Hacks Applied . | . . . . Relay Couplers Released . | . . . . Fabnet Peak Effective % . | . . . . Robots Rewired . | . . . . Allies Hacked . | . . . . Hacks Repelled . | . . . . Allies | -11 -10 -10 -10 -------- Run | Yrd Mat Min Sub Total Allies 2 | . . 2 . Largest Group 2 | . . 2 2 Highest-Rated Group 48 | . . 48 48 Highest-Rated Ally 31 | . . 31 31 Total Orders . | . . . . Ally Attacks 23 | . . 15 8 Total Damage 339 | . . 224 115 Kills 7 | . . 6 1 Allies Corrupted . | . . . . Allies Melted . | . . . . Intel | -11 -10 -10 -10 ------- Run | Yrd Mat Min Sub Active Infowar (turns) 1784 | . 140 306 1338 Sensors 1644 | . . 306 1338 ECM 140 | . 140 . . Robot Analysis Total . | . . . . Derelict Logs Recovered 3 | . . 2 1 Drone Launches . | . . . . Drone Recoveries . | . . . . Exploration | -11 -10 -10 -10 ------------- Run | Yrd Mat Min Sub Turns Passed 2319 | 96 361 524 1338 Spaces Moved 1876 | 67 233 422 1154 Core 14 | 14 . . . Treads . | . . . . Legs 209 | 53 156 . . Wheels 1653 | . 77 422 1154 Hover . | . . . . Flight . | . . . . Fastest Speed 50 | 50 100 100 90 Average Speed 104 | 105 113 100 105 Slowest Speed 120 | 120 120 100 110 Overloaded Moves . | . . . . Propulsion Burnouts . | . . . . Robots Hopped . | . . . . Potential Cave-ins . | . . . . Cave-ins Triggered . | . . . . Exploration Rate (%) 56 | 9 43 96 78 Regions Visited 3 Branch Regions 2 Pre-discovered Areas 1 | . . . 1 Known Exits Taken . | . . . . Unknown Exits Taken 3 | 1 1 1 . Scrap Searched 1 | . . 1 . Spaces Dug . | . . . . Terrain Destroyed 118 | . 7 . 111 Melee . | . . . . Projectile . | . . . . AOE 118 | . 7 . 111 Terrain Rammed . | . . . . Walls Destroyed . | . . . . Machines Disabled . | . . . . Actions | -11 -10 -10 -10 --------- Run | Yrd Mat Min Sub Total 2111 | 81 310 485 1235 Wait 47 | . 23 20 4 Move 1873 | 66 232 421 1154 Hop . | . . . . Pick Up 33 | 4 12 6 11 Fast Attach 9 | 6 2 . 1 Attach 6 | . 1 2 3 Detach . | . . . . Swap 34 | 1 12 8 13 Drop 37 | . 16 5 16 Fire 71 | 4 11 23 33 Melee . | . . . . Ram . | . . . . Kick 1 | . 1 . . Crush . | . . . . Escape Stasis . | . . . . Rewire . | . . . . Trap . | . . . . Miscellaneous . | . . . . Route ------- -11/Scrapyard -10/Materials -10/Mines (discovered 3 exits: [*Mat x2] / *Sub) -10/Subcaves (discovered 3 exits: [*Mat x2] / [*Scr]) History --------- Turn | Location | Event 2 | -11/Scrapyard | Met Revision 17 66 | -11/Scrapyard | Discovered new exit (range 8) 97 | -11/Scrapyard | Entered Materials 444 | -10/Materials | Discovered new exit (range 6) 458 | -10/Materials | Entered Mines 477 | -10/Mines | Met a Derelict bent on vengeance 516 | -10/Mines | Discovered new exit (range 5) 616 | -10/Mines | Assembled infested the area 616 | -10/Mines | Build established: Mutant 640 | -10/Mines | Found a damaged Exp. Sensor Array with a note attached 642 | -10/Mines | Found Prototype Device 644 | -10/Mines | Identified Exp. Sensor Array 672 | -10/Mines | Learned Materials trap positions 786 | -10/Mines | Learned Materials stockpile data 886 | -10/Mines | Discovered new exit (range 9) 938 | -10/Mines | Discovered new exit (range 4) 982 | -10/Mines | Entered Subcaves 982 | -10/Subcaves | Accompanied by 2 allies 983 | -10/Subcaves | Approached by a straggling Scientist 987 | -10/Subcaves | Led the pair of lost Derelicts to an unsafe place 1063 | -10/Subcaves | A swath of the cavern ceiling suddenly collapsed 1174 | -10/Subcaves | Shifting Twisted Machinery released Battle Cannon 1175 | -10/Subcaves | Ambushed by Subdwellers from Twisted Machinery 1206 | -10/Subcaves | Shifting Twisted Machinery released Sub. Optics 1241 | -10/Subcaves | Learned Materials emergency access door positions 1267 | -10/Subcaves | Discovered new exit (range 11) 1271 | -10/Subcaves | Core integrity fell below 50% 1428 | -10/Subcaves | Shifting Twisted Machinery released Barrage Gun 1497 | -10/Subcaves | Build established: Scavenger-Mutant 1514 | -10/Subcaves | Discovered new exit (range 12) 1581 | -10/Subcaves | Learned location of Zion (-7) 1581 | -10/Subcaves | Met a Zionite searching for "candidates" 1641 | -10/Subcaves | Visited 4L-MR0's lab 1770 | -10/Subcaves | Core integrity fell below 20% 1968 | -10/Subcaves | Shifting Twisted Machinery released Mak. Kinetic Plating 2274 | -10/Subcaves | Build established: Mutant 2317 | -10/Subcaves | Ambushed by Subdweller buried in earth 2320 | -10/Subcaves | Destroyed by ZU-OWB(R) with Subdweller Machine Gun Last Messages --------------- 01765_ YL-0SU(R) suffers critical hit (Destroy). 01765_ Destroyed Sub. Power Source. 01774_ YL-0SU(R) destroyed. 01774_ Switching to secondary target: RI-1MG(R). 01778_ Launcher Guidance Computer destroyed. 01780_ RI-1MG(R) affixes Scrap Shield Fragment to Scrap Shield. 01781_ Sub. Laser destroyed. 01791_ RI-1MG(R) affixes Scrap Shield Fragment to Scrap Shield. 01793_ RI-1MG(R) destroyed. 01806_ Acquired 19 matter. 01807_ Acquired 37 matter. 01813_ Acquired Disposable Heat Sink. 01868_ Acquired 42 matter. 01906_ Sub. Monowheel shoots sparks and powers down. Mak. Kinetic Plating falls loose from the Twisted Machinery. 01977_ Dropped Imp. Heat Sink. 01978_ Acquired Mak. Kinetic Plating. 02061_ Sub. Monowheel shoots sparks and powers down. [Achievement: Do Not Disturb] 02318_ 1P-ZQT(R): "ARGHSUB!" Map ----- +----------------------------------------------------+ | ???????????????????????????????????????????# # # | | ??????????????????????????????????????????????# | | ???????????????????????????????? ??????????## | | ?????????????????????????????? ?????????# | | ?????????????????????????????? #????????##### | | ?????????????????????????????? ?????????### | | ?????????????????????????????? #????????# | | ??????????????????????????????? ##?????## ## | | ?????????????????????????????????# ##???## ## | | ??????????????????????????????????# ##### # | | ??????????????????????????????????# | | ?????????????????????????????????##### | | ??????????????????????????????#### ## ### | | ????????????????????????????### ### | | ???????????????????????????## ## ##### ## | | ???????????????????????????# ##???###? | | ?????????????????????????????# #???????? | | ????????????????????????????## ####????? | | ????????????????????####????# ##???? | | ???????????????????## ###?# ### #???? | | ???????????????????# #?# #### ##??? | | ???????????????????# #?## #### ##?? | | ?????????????????### #??#####?## ### | | ????????????????## ##???##### ###### | | ????????????????# ##?## #????# | | ?????????????????"""" @ ### ##???# | | ??????????????? " # #??# | | ???????????????????##" #??# | | ???????????????????#"" RR " #??## | | ??????????????????#" #### ##???##### # | | ?????????????????""" #??#""" ###????????#### | | ??????????????????""""######??#?""##?????????????? | | ????????????????? ????????#""##??????????????? | | ???????????????? "???????? ""#???????????????? | | ???????????????? ??????? ???????????????? | | ?????????????????" ????????? ???????????????? | | ????????????????????????????? ??????????????????? | | ?????????????????????????????? ??????????????????? | | ?????????????????????????????????????????????????? | | ?????????????????????????????????????????????????? | | ?????????????????????????????????????????????????? | | ?????????????????????????????????????????????????? | | ?????????????????????????????????????????????????? | | ?????????????????????????????????????????????????? | | ?????????????????????????????????????????????????? | | ?????????????????????????????????????????????????? | | ?????????????????????????????????????????????????? | | ?????????????????????????????????????????????????? | | ?????????????????????????????????????????????????? | | ?????????????????????????????????????????????????? | +----------------------------------------------------+ Best States ------------- Heat Dissipation 39 Energy Generation 15 Energy Capacity 250 Matter Stores 300 Matter Capacity 300 Sight Range 16 Robot Scan Range 20 Terrain Scan Density 10 ECM Strength 1 Armor Coverage 225 Resistance: KI 10 Weapon Shielding 33 Evasion (%) 55 Launcher Accuracy 20 Item Schematics ----------------- None Robot Schematics ------------------ None Fabricated ------------ Nothing Repaired ---------- Nothing Studied --------- None Alien Tech Used ----------------- None Achievements -------------- Do Not Disturb For Emergencies Only Mistaken Identity Challenges ------------ None Game ------ Seed GuidedAdvancedCleaver Manual? 0 Play Time 00:54:22 Cumulative 217.0 hours Start 2026.01.12 @ 20:39:19 End 2026.01.12 @ 22:29:52 Sessions 3 Manual Loads 0 Difficulty Rogue Special Mode None Game No. 57 Rogue 57 Adventurer 0 Explorer 0 Win Type - Total 1 Types 1/0/0/0/0/0/0/0/0/0 Lore% 23 Gallery% 46 Achievement% 28 Wizard Run 0 Options --------- Layout 1 ASCII 0 Keyboard 1 Movement Numpad Keybinds 0 Fullscreen 1 Font 32/SmallcapsGlow Map View 77x35 Zoom Use 0% Tactical HUD 1 Map Filters NONE Filters NONE Steam 1 RUN: 6ae0c159-ea67-4985-b99c-ecb7d7d5f7ca